bitfinex-derivatives/quotes_SOLF0:USTF0_20260114
["timestamp","ask_amount","ask_price","bid_price","bid_amount"]
[1768405438440,6.148,146.42,146.37,80.66]
[1768405438629,6.148,146.42,146.31,167.39164528]
[1768405438630,6.1489,146.4,146.32,3.20291703]
[1768405438832,6.1489,146.4,146.34,3.20291703]
[1768405439236,6.1493,146.39,146.34,3.20291703]
[1768405439442,95.6327,146.43,146.35,80.68]
[1768405439835,95.6327,146.43,146.34,3.20291703]
[1768405440240,6.1493,146.39,146.38,0.0494427]
[1768405440544,95.5893,146.49,146.36,3.20291703]
[1768405440835,95.5893,146.49,146.37,3.20291703]
[1768405440836,3.06868451,146.48,146.37,3.20291703]
[1768405441042,3.06868451,146.48,146.38,3.20291703]
[1768405441730,3.06868451,146.54,146.4,3.20291703]
[1768405441935,3.06868451,146.54,146.43,3.20291703]
[1768405442140,3.06868451,146.54,146.44,83.88291703]
[1768405442838,9.21178451,146.54,146.45,3.20291703]
[1768405443143,9.21178451,146.54,146.46,80.68]
[1768405443346,9.21178451,146.54,146.48,0.04973531]
[1768405443643,6.1431,146.54,146.48,0.04973531]
[1768405443834,6.1435,146.53,146.48,0.04973531]
[1768405444041,3.06868451,146.56,146.48,0.04973531]
[1768405444436,3.06868451,146.56,146.47,80.68]
[1768405444736,3.06868451,146.56,146.51,0.04533451]
[1768405445041,6.1427,146.55,146.51,0.04533451]
[1768405445238,98.59728451,146.59,146.51,0.04533451]
[1768405445835,6.1423,146.56,146.51,0.04533451]
[1768405446140,6.18891454,146.56,146.5,80.66]
[1768405446438,98.60178451,146.58,146.5,80.66]
[1768405446743,98.60178451,146.58,146.47,24.11504919]
[1768405446939,98.60178451,146.58,146.48,80.66]
[1768405447533,98.60178451,146.58,146.47,24.11504919]
[1768405447734,98.60178451,146.58,146.48,80.66]
[1768405447939,6.1423,146.56,146.52,0.04325308]
[1768405449043,9.21008451,146.58,146.52,0.04325308]
[1768405449339,3.06868451,146.58,146.52,0.04325308]
[1768405449542,3.11261958,146.55,146.48,80.64]
[1768405449839,3.11261958,146.55,146.47,80.64]
[1768405449840,6.143,146.54,146.47,80.64]
[1768405450046,3.11261958,146.55,146.47,80.64]
[1768405450343,3.06868451,146.55,146.47,80.64]
[1768405450931,0.04779975,146.52,146.47,80.64]
[1768405451643,0.04779975,146.52,146.45,3.20291703]
[1768405451836,0.04779975,146.52,146.46,80.64]
[1768405453843,0.04779975,146.52,146.45,83.84291703]
[1768405454141,0.04779975,146.52,146.45,9.34931703]
[1768405454341,6.143,146.54,146.46,80.64]
[1768405454636,9.21168451,146.54,146.46,80.64]
[1768405454842,0.04880413,146.5,146.46,80.64]
[1768405455436,0.04880413,146.5,146.42,3.20291703]
[1768405456140,0.04880413,146.5,146.43,80.64]
[1768405456347,6.19340413,146.5,146.43,80.64]
[1768405456541,6.19340413,146.5,146.42,83.84291703]
[1768405457039,0.04880413,146.5,146.43,3.20291703]
[1768405457941,0.04880413,146.5,146.43,9.35021703]
[1768405458248,0.04880413,146.5,146.44,3.20291703]
[1768405458643,0.04880413,146.5,146.44,9.34981703]
[1768405458843,3.06868451,146.55,146.45,3.20291703]
[1768405459045,3.06868451,146.55,146.46,80.68902831]
[1768405459538,3.06868451,146.53,146.45,80.64]
[1768405459743,3.06868451,146.53,146.45,83.84291703]
[1768405460244,3.06868451,146.53,146.48,0.04937643]
[1768405460748,6.1438,146.52,146.48,0.04937643]
[1768405462347,6.1442,146.51,146.48,0.04937643]
[1768405462941,95.5558,146.55,146.48,0.04937643]
[1768405463141,98.78975461,146.55,146.48,0.04937643]
[1768405463545,6.1438,146.52,146.48,0.04937643]
[1768405463952,3.23395461,146.55,146.48,0.04937643]
[1768405464751,98.76785461,146.58,146.48,3.18416476]
[1768405464939,3.23395461,146.58,146.48,3.18416476]
[1768405465342,6.1422,146.56,146.48,3.13478833]
[1768405465739,6.1422,146.56,146.52,0.04771015]
[1768405467349,9.37545461,146.58,146.52,0.04771015]
[1768405467551,6.1415,146.58,146.52,3.18249848]
[1768405467951,6.1418,146.57,146.52,3.18249848]
[1768405468252,95.524,146.59,146.52,3.18249848]
[1768405468643,98.75795461,146.59,146.52,0.04771015]
[1768405468953,9.37475461,146.59,146.52,0.04771015]
[1768405471054,3.23395461,146.59,146.52,0.04771015]
[1768405474457,3.25970007,146.55,146.47,3.13478833]
[1768405474656,3.30945229,146.57,146.47,3.13478833]
[1768405475155,6.1421,146.56,146.47,3.13478833]
[1768405475552,6.1426,146.55,146.47,3.13478833]
[1768405476054,0.04568379,146.53,146.47,3.13478833]
[1768405482259,0.04568379,146.53,146.47,9.28038833]
[1768405482457,0.04568379,146.53,146.47,89.90038833]
[1768405482658,0.04568379,146.53,146.48,3.13478833]
[1768405483754,6.1415,146.58,146.49,3.13478833]
[1768405483954,8.65401328,146.61,146.49,3.17962751]
[1768405484366,8.65401328,146.61,146.49,3.13478833]
[1768405484569,326.44370062,146.62,146.5,3.13478833]
[1768405484570,80.62,146.6,146.5,3.13478833]
[1768405484864,326.44370062,146.62,146.54,0.04849783]
[1768405485066,6.1414,146.58,146.54,0.04849783]
[1768405485868,95.517,146.6,146.54,0.04849783]
[1768405486067,0.05227377,146.57,146.5,3.13478833]
[1768405486571,0.05227377,146.57,146.47,83.75478833]
[1768405486860,0.05227377,146.57,146.48,3.13478833]
[1768405487062,95.5269,146.59,146.48,3.13478833]
[1768405487454,0.04769947,146.54,146.48,3.13478833]
[1768405488067,6.1419,146.57,146.48,3.13478833]
[1768405488366,6.1419,146.57,146.5,3.18394712]
[1768405488963,6.1421,146.56,146.5,3.18394712]
[1768405489466,6.1421,146.56,146.5,3.13478833]
[1768405489971,6.1425,146.55,146.52,0.04421098]
[1768405490364,6.1425,146.55,146.52,0.0045742]
[1768405490668,6.1429,146.54,146.52,0.0045742]
[1768405492264,0.05046067,146.55,146.52,0.0045742]
[1768405496676,6.1415,146.58,146.52,0.0045742]
[1768405497173,6.1417,146.57,146.52,0.0045742]
[1768405497580,6.1417,146.57,146.51,3.15003671]
[1768405498080,6.1417,146.57,146.53,0.0454284]
[1768405498983,95.5175,146.6,146.53,0.0454284]
[1768405499278,95.5143,146.61,146.53,0.0454284]
[1768405499879,95.5173,146.6,146.53,0.0454284]
[1768405500386,95.5305,146.58,146.48,83.77003671]
[1768405500676,95.5305,146.58,146.48,3.15003671]
[1768405500677,95.57454958,146.58,146.48,3.15003671]
[1768405500883,95.57454958,146.58,146.49,3.15003671]
[1768405500884,0.04404958,146.58,146.49,3.15003671]
[1768405501079,131.54451953,146.61,146.49,3.15003671]
[1768405501280,95.5143,146.61,146.49,3.15003671]
[1768405501872,0.04303777,146.56,146.51,3.15003671]
[1768405502079,95.5047,146.62,146.51,3.15003671]
[1768405502276,98.77201953,146.61,146.54,0.0497124]
[1768405502480,98.76431953,146.62,146.54,0.0497124]
[1768405502789,328.93937863,146.63,146.54,0.0497124]
[1768405502975,6.1408,146.59,146.54,0.0497124]
[1768405503386,6.1408,146.59,146.53,3.15003671]
[1768405503886,6.1402,146.61,146.55,0.04380281]
[1768405504083,233.43727863,146.63,146.55,0.04380281]
[1768405504790,6.1399,146.62,146.55,0.04380281]
[1768405504991,3.25961953,146.62,146.55,0.04380281]
[1768405505188,6.1405,146.6,146.55,0.04380281]
[1768405506083,3.25961953,146.6,146.49,6.1446]
[1768405506283,3.25961953,146.6,146.5,3.15003671]
[1768405506583,0.0465894,146.59,146.5,3.15003671]
[1768405506980,6.1412,146.58,146.5,9.29443671]
[1768405507289,115.9972,146.62,146.5,3.15003671]
[1768405507290,3.25961953,146.62,146.5,3.15003671]
[1768405507589,6.1404,146.6,146.52,9.29353671]
[1768405507978,6.1404,146.6,146.55,0.04683348]
[1768405509389,9.39951953,146.62,146.55,0.04683348]
[1768405509687,3.25961953,146.62,146.55,0.04683348]
[1768405510089,100.12721953,146.62,146.49,3.15003671]
[1768405510284,3.30432494,146.6,146.49,83.75003671]
[1768405510590,3.25961953,146.6,146.49,3.15003671]
[1768405510786,3.25961953,146.6,146.5,3.15003671]
[1768405511481,3.25961953,146.6,146.47,80.6]
[1768405511482,3.25961953,146.6,146.52,3.15003671]
[1768405511885,3.25961953,146.62,146.54,0.04659962]
[1768405512083,233.43727863,146.63,146.54,3.19663633]
[1768405512280,233.43727863,146.63,146.54,3.15003671]
[1768405512980,233.43727863,146.63,146.57,0.0442129]
[1768405513381,0.04864842,146.6,146.57,0.0442129]
[1768405514687,3.25961953,146.68,146.58,3.15003671]
[1768405514987,6.1379,146.66,146.58,3.15003671]
[1768405515200,3.25961953,146.68,146.58,3.15003671]
[1768405515382,6.1383,146.65,146.58,3.15003671]
[1768405515981,6.1375,146.67,146.58,3.15003671]
[1768405516191,3.25961953,146.7,146.6,3.20129561]
[1768405516584,6.1375,146.67,146.6,3.20129561]
[1768405516780,3.25961953,146.66,146.57,3.15003671]
[1768405516980,3.25961953,146.64,146.54,3.15003671]
[1768405517686,196.565,146.67,146.55,3.15003671]
[1768405517885,3.25961953,146.65,146.55,3.15003671]
[1768405518594,3.25961953,146.65,146.59,0.04928442]
[1768405519489,9.39821953,146.65,146.59,0.04928442]
[1768405520092,6.1392,146.63,146.59,0.04928442]
[1768405520595,9.39821953,146.65,146.59,0.04928442]
[1768405521094,3.25961953,146.65,146.59,0.04928442]
[1768405521998,6.1387,146.64,146.59,0.04928442]
[1768405522893,3.25961953,146.65,146.59,0.04928442]
[1768405522894,6.1392,146.63,146.59,0.04928442]
[1768405523290,3.25961953,146.63,146.55,3.15003671]
[1768405523494,0.0449878,146.62,146.55,3.15003671]
[1768405524300,6.1845878,146.62,146.55,3.15003671]
[1768405524605,3.25961953,146.61,146.52,9.34930175]
[1768405525297,3.25961953,146.63,146.53,3.20600175]
[1768405525490,0.04836015,146.58,146.53,9.34920175]
[1768405525693,3.25961953,146.63,146.53,9.34920175]
[1768405525897,3.25961953,146.63,146.57,0.04345398]
[1768405527392,6.14,146.61,146.57,0.04345398]
[1768405527697,6.18701385,146.61,146.53,3.20600175]
[1768405528090,6.18701385,146.61,146.5,80.6]
[1768405528091,6.1408,146.59,146.5,9.35030175]
[1768405528595,6.1408,146.59,146.51,3.20600175]
[1768405529399,0.0447517,146.56,146.51,3.20600175]
[1768405529900,3.25961953,146.61,146.51,3.20600175]
[1768405530094,3.25961953,146.61,146.52,0.0488605]
[1768405530401,6.1408,146.59,146.52,0.0488605]
[1768405530599,6.1408,146.59,146.51,3.20600175]
[1768405530999,6.1408,146.59,146.51,9.35010175]
[1768405531200,6.1408,146.59,146.54,0.05049589]
[1768405532592,9.39991953,146.61,146.54,0.05049589]
[1768405533291,6.1403,146.61,146.54,0.05049589]
[1768405533497,23.74961953,146.64,146.54,3.25649764]
[1768405533698,3.25961953,146.64,146.54,9.39919764]
[1768405533893,3.25961953,146.64,146.55,3.20600175]
[1768405534099,6.1392,146.63,146.55,3.20600175]
[1768405534294,6.1392,146.63,146.58,0.05201758]
[1768405535399,2.08576116,146.62,146.55,3.20600175]
[1768405535695,2.13364881,146.62,146.55,3.20600175]
[1768405536199,2.13364881,146.62,146.54,6.1427]
[1768405536394,0.04788765,146.62,146.54,6.1427]
[1768405536597,2.08576116,146.61,146.55,3.20600175]
[1768405537898,8.27314881,146.62,146.55,3.20600175]
[1768405538308,0.04788765,146.62,146.55,9.34830175]
[1768405538491,0.04788765,146.62,146.56,3.20600175]
[1768405542188,0.04788765,146.62,146.53,5.29176291]
[1768405542394,2.08576116,146.61,146.54,3.20600175]
[1768405542594,2.08576116,146.61,146.52,6.1433]
[1768405542595,2.08576116,146.59,146.51,3.20600175]
[1768405543001,2.13145785,146.59,146.51,3.20600175]
[1768405543999,2.08576116,146.61,146.52,2.08576116]
[1768405544201,6.1398,146.62,146.53,3.20600175]
[1768405544402,6.1389,146.64,146.55,3.20600175]
[1768405544608,2.08576116,146.63,146.55,3.20600175]
[1768405545304,2.08576116,146.63,146.58,0.04466382]
[1768405547501,6.1389,146.64,146.58,0.04466382]
[1768405547703,2.08576116,146.63,146.58,0.04466382]
[1768405548399,2.08576116,146.63,146.51,95.5724]
[1768405548400,2.08576116,146.61,146.53,9.34890175]
[1768405549002,6.139,146.64,146.55,3.20600175]
[1768405549204,2.08576116,146.63,146.55,3.20600175]
[1768405549702,8.22486116,146.63,146.55,3.20600175]
[1768405549899,0.04843474,146.6,146.55,3.20600175]
[1768405550602,0.04843474,146.6,146.52,9.34930175]
[1768405550902,0.04843474,146.6,146.53,3.19271678]
[1768405551205,2.08576116,146.61,146.53,3.19271678]
[1768405551407,8.22576116,146.61,146.53,3.19271678]
[1768405551602,0.04982624,146.58,146.51,6.1438]
[1768405551807,0.04982624,146.58,146.5,3.19271678]
[1768405552105,6.19112624,146.58,146.5,9.33711678]
[1768405552803,2.08576116,146.57,146.5,9.33711678]
[1768405552999,6.19112624,146.58,146.51,3.19271678]
[1768405553199,8.2768874,146.58,146.51,3.19271678]
[1768405553403,8.22706116,146.58,146.51,3.19271678]
[1768405553909,2.08576116,146.58,146.52,3.19271678]
[1768405554106,2.08576116,146.58,146.53,0.04747512]
[1768405556308,8.22706116,146.58,146.53,0.04747512]
[1768405556806,2.08576116,146.58,146.53,0.04747512]
[1768405557506,6.1408,146.59,146.53,0.04747512]
[1768405557708,2.08576116,146.58,146.53,0.04747512]
[1768405558004,8.22656116,146.59,146.53,0.04747512]
[1768405558597,6.1408,146.59,146.53,0.04747512]
[1768405559001,8.22656116,146.59,146.53,0.04747512]
[1768405559407,2.08576116,146.59,146.53,0.04747512]
[1768405560703,95.4942,146.64,146.53,0.04747512]
[1768405560898,2.08576116,146.61,146.53,3.2401919]
[1768405561093,2.08576116,146.61,146.53,3.19271678]
[1768405561410,8.22586116,146.61,146.53,3.19271678]
[1768405561703,2.08576116,146.63,146.56,0.04763357]
[1768405561903,8.22516116,146.63,146.56,3.24035035]
[1768405562101,2.08576116,146.63,146.56,3.24035035]
[1768405562298,2.08576116,146.63,146.56,3.19271678]
[1768405562707,6.1401,146.61,146.56,3.19271678]
[1768405563202,2.08576116,146.61,146.53,3.19271678]
[1768405563407,6.1409,146.59,146.53,3.19271678]
[1768405563808,6.1409,146.59,146.41,20.49]
[1768405563809,1.12528216,146.53,146.41,20.49]
[1768405564005,2.08576116,146.48,146.38,2.08576116]
[1768405564205,2.08576116,146.48,146.31,1.18895096]
[1768405564206,1.12528216,146.45,146.31,1.18895096]
[1768405564398,1.12528216,146.41,146.31,1.18895096]
[1768405564604,1.12528216,146.39,146.31,1.18895096]
[1768405564900,95.6313,146.43,146.31,1.18895096]
[1768405564901,97.71776116,146.43,146.31,1.18895096]
[1768405565100,97.71776116,146.43,146.33,2.08576116]
[1768405565300,95.6294,146.43,146.29,81.78915409]
[1768405565508,95.6221,146.44,146.37,2.08576116]
[1768405565808,96.79522183,146.45,146.34,83.79271678]
[1768405566001,95.6301,146.43,146.35,0.04491031]
[1768405566203,95.6301,146.43,146.36,80.6]
[1768405566406,6.1482,146.42,146.36,83.79271678]
[1768405566599,95.6208,146.45,146.37,5.27847794]
[1768405566794,97.70656116,146.45,146.37,3.19271678]
[1768405567002,97.70656116,146.45,146.38,0.04917205]
[1768405567404,6.1468,146.45,146.38,0.04917205]
[1768405568210,6.1468,146.45,146.38,3.24188883]
[1768405568405,6.1459,146.47,146.41,3.19271678]
[1768405568597,95.5872,146.5,146.41,3.19271678]
[1768405569002,2.08576116,146.49,146.42,80.62]
[1768405569405,6.146,146.47,146.44,0.04431187]
[1768405569709,95.5872,146.5,146.44,0.04431187]
[1768405570509,6.145,146.49,146.44,0.04431187]
[1768405570910,2.08576116,146.5,146.44,0.04431187]
[1768405571407,2.08576116,146.49,146.44,0.04431187]
[1768405571610,2.08576116,146.51,146.44,0.04431187]
[1768405571809,7.31772183,146.53,146.44,0.04431187]
[1768405572110,2.08576116,146.52,146.44,0.04431187]
[1768405572312,2.08576116,146.52,146.43,3.19271678]
[1768405572703,2.08576116,146.52,146.47,0.04692874]
[1768405573316,6.1425,146.55,146.47,0.04692874]
[1768405573317,2.08576116,146.5,146.47,0.04692874]
[1768405573508,2.08576116,146.5,146.43,3.19271678]
[1768405575011,2.08576116,146.5,146.43,83.83271678]
[1768405575012,0.04849364,146.48,146.43,83.83271678]
[1768405575213,2.1342548,146.48,146.43,3.19271678]
[1768405575412,2.1342548,146.48,146.39,2.08576116]
[1768405575413,2.08576116,146.46,146.41,80.64]
[1768405575805,0.04849364,146.48,146.41,80.64]
[1768405576015,2.08576116,146.48,146.41,80.64]
[1768405576310,0.0449466,146.45,146.41,80.64]
[1768405576714,2.08576116,146.48,146.41,80.64]
[1768405576914,2.08576116,146.48,146.42,0.0495467]
[1768405577613,2.08576116,146.5,146.42,3.24226348]
[1768405578115,2.08576116,146.5,146.42,3.19271678]
[1768405578516,2.08576116,146.5,146.45,0.04776968]
[1768405578811,2.08576116,146.52,146.45,0.04776968]
[1768405579314,2.08576116,146.52,146.44,3.19271678]
[1768405579608,3.26018299,146.54,146.45,2.08576116]
[1768405579814,3.26018299,146.54,146.47,0.05176921]
[1768405580612,1.17442183,146.54,146.47,0.05176921]
[1768405580810,3.26018299,146.54,146.47,0.05176921]
[1768405582412,3.26018299,146.54,146.47,80.69176921]
[1768405582913,3.26018299,146.54,146.47,0.05176921]
[1768405583108,1.17442183,146.54,146.47,2.13753037]
[1768405583304,3.26093944,146.57,146.47,5.12974405]
[1768405583907,1.17517828,146.57,146.47,2.99221368]
[1768405584117,3.26093944,146.57,146.48,2.08576116]
[1768405584322,3.26093944,146.57,146.51,0.05094743]
[1768405584509,2.08576116,146.55,146.51,0.05094743]
[1768405584713,0.05222615,146.54,146.48,80.64]
[1768405585816,0.05222615,146.54,146.46,2.08576116]
[1768405586015,0.05222615,146.54,146.47,80.64]
[1768405586316,0.05222615,146.54,146.47,5.07797484]
[1768405586521,0.05222615,146.54,146.47,83.63221368]
[1768405586821,0.05222615,146.54,146.47,85.71797484]
[1768405589921,0.05222615,146.54,146.49,2.08576116]
[1768405590123,0.05222615,146.54,146.51,2.08576116]
[1768405590325,1.17394542,146.58,146.51,2.08576116]
[1768405591023,1.17394542,146.64,146.55,2.08576116]
[1768405591620,7.31334542,146.63,146.58,0.04415436]
[1768405591816,1.17394542,146.63,146.58,0.04415436]
[1768405592021,3.25970658,146.66,146.58,0.04415436]
[1768405592527,1.17394542,146.65,146.58,0.04415436]
[1768405594126,1.17394542,146.64,146.58,0.04415436]
[1768405596531,1.17394542,146.67,146.58,0.04415436]
[1768405596933,6.1379,146.66,146.58,3.03636804]
[1768405597126,6.1379,146.66,146.58,2.99221368]
[1768405597519,6.1379,146.66,146.61,0.04599123]
[1768405598942,241.9890719,146.68,146.61,0.04599123]
[1768405599143,241.9890719,146.68,146.61,3.03820491]
[1768405600838,96.65916701,146.72,146.62,2.99221368]
[1768405601043,1.21766701,146.71,146.62,2.99221368]
[1768405601244,7.35366701,146.71,146.63,80.6]
[1768405601734,1.21766701,146.71,146.63,2.99221368]
[1768405602135,1.21766701,146.74,146.66,0.04718858]
[1768405602543,184.64269915,146.79,146.66,0.04718858]
[1768405602544,1.21766701,146.79,146.66,3.03940226]
[1768405602846,1.21766701,146.79,146.66,2.99221368]
[1768405603042,1.21766701,146.79,146.69,0.04953623]
[1768405603340,1.21766701,146.79,146.7,80.58]
[1768405603644,1.21766701,146.79,146.71,2.99221368]
[1768405604036,233.66728596,146.8,146.73,0.04387647]
[1768405604237,7.34906701,146.82,146.73,3.03609015]
[1768405604741,7.34906701,146.82,146.73,2.99221368]
[1768405605239,7.34906701,146.82,146.76,0.04929109]
[1768405606644,80.58,146.85,146.76,0.04929109]
[1768405606645,6.1304,146.84,146.76,0.04929109]
[1768405606845,1.21766701,146.85,146.76,80.60929109]
[1768405607239,1.21766701,146.85,146.76,83.55221368]
[1768405607537,1.21766701,146.85,146.79,0.05058006]
[1768405607737,1.21766701,146.89,146.79,0.05058006]
[1768405607935,96.54816701,146.89,146.79,80.61058006]
[1768405608142,1.21766701,146.88,146.79,80.56]
[1768405608537,6.1283,146.89,146.8,2.99221368]
[1768405608742,1.21766701,146.88,146.83,0.04862033]
[1768405608942,0.04428491,146.85,146.8,80.54]
[1768405609543,0.04428491,146.85,146.78,2.99221368]
[1768405609745,0.04428491,146.85,146.77,20.3951804]
[1768405609746,1.21766701,146.88,146.8,2.99221368]
[1768405609948,6.1283,146.89,146.8,2.99221368]
[1768405610751,6.1283,146.89,146.81,80.54]
[1768405610943,6.1283,146.89,146.8,2.99221368]
[1768405611144,7.29049085,146.89,146.83,0.04403184]
[1768405611448,1.16219085,146.89,146.83,0.04403184]
[1768405611842,6.1298,146.86,146.77,23.64831575]
[1768405612048,6.1298,146.86,146.78,80.52]
[1768405613446,7.24685901,146.88,146.78,80.52]
[1768405613848,7.24685901,146.88,146.79,3.25313535]
[1768405614444,7.24685901,146.88,146.82,0.04653412]
[1768405615944,6.128,146.9,146.82,3.29966947]
[1768405616345,1.11815901,146.91,146.82,3.29966947]
[1768405616550,1.11815901,146.91,146.82,3.25313535]
[1768405616746,1.11815901,146.91,146.83,80.5]
[1768405616950,1.11815901,146.91,146.85,0.04639662]
[1768405617137,7.24575901,146.91,146.85,0.04639662]
[1768405617337,1.11815901,146.9,146.79,3.25313535]
[1768405617648,1.11815901,146.9,146.78,3.25313535]
[1768405617649,7.20046239,146.88,146.78,3.25313535]
[1768405617842,1.07176239,146.88,146.78,3.25313535]
[1768405618852,1.07176239,146.88,146.8,3.25313535]
[1768405619451,115.7956,146.93,146.82,0.04393081]
[1768405619452,7.19936239,146.91,146.82,0.04393081]
[1768405619848,1.07176239,146.91,146.82,0.04393081]
[1768405620145,6.1283,146.89,146.81,80.48]
[1768405620351,6.1283,146.89,146.8,3.25313535]
[1768405620352,1.07176239,146.89,146.8,3.25313535]
[1768405620653,1.07176239,146.87,146.78,80.48]
[1768405620851,1.07176239,146.87,146.77,23.64831575]
[1768405621240,1.07176239,146.87,146.77,104.12831575]
[1768405621648,6.1296,146.86,146.77,9.38623535]
[1768405621846,0.04574408,146.83,146.78,80.48]
[1768405622050,0.04574408,146.83,146.78,83.73313535]
[1768405624254,0.04574408,146.83,146.75,29.96691923]
[1768405624449,0.04574408,146.83,146.76,80.48]
[1768405624849,184.43459915,146.89,146.77,3.25313535]
[1768405624850,6.1292,146.87,146.77,3.25313535]
[1768405625155,1.07176239,146.88,146.77,3.25313535]
[1768405625843,6.1296,146.86,146.78,89.86583535]
[1768405626042,0.0456366,146.84,146.78,89.86583535]
[1768405626243,0.0456366,146.84,146.78,83.73313535]
[1768405626942,0.0456366,146.84,146.79,3.25313535]
[1768405627342,96.43689899,146.91,146.79,3.25313535]
[1768405627553,6.1291,146.87,146.8,3.30028834]
[1768405627949,6.1291,146.87,146.8,3.25313535]
[1768405628753,96.45299899,146.88,146.8,3.25313535]
[1768405628956,1.11739899,146.84,146.74,3.25313535]
[1768405630055,6.1316,146.81,146.78,0.04544362]
[1768405630355,96.48859899,146.83,146.74,3.25313535]
[1768405630560,0.04441416,146.8,146.72,83.71313535]
[1768405630758,6.1329,146.78,146.72,83.71313535]
[1768405630951,0.04441416,146.8,146.72,83.71313535]
[1768405631155,1.11739899,146.84,146.73,3.25313535]
[1768405631552,81.57739899,146.87,146.73,3.25313535]
[1768405631752,0.04361084,146.8,146.73,3.25313535]
[1768405631955,81.57739899,146.87,146.73,3.25313535]
[1768405632462,81.57739899,146.87,146.74,3.25313535]
[1768405632759,1.11739899,146.87,146.74,3.25313535]
[1768405633060,1.11739899,146.87,146.76,3.25313535]
[1768405633261,1.11739899,146.87,146.79,0.04687824]
[1768405633456,7.29100983,146.85,146.79,0.04687824]
[1768405633961,1.16100983,146.85,146.77,83.71313535]
[1768405634855,1.16100983,146.85,146.8,0.04730543]
[1768405635055,1.16100983,146.88,146.8,0.04730543]
[1768405635567,7.28990983,146.88,146.78,3.25313535]
[1768405635948,7.28990983,146.88,146.83,0.04513267]
[1768405636153,6.1292,146.87,146.83,0.04513267]
[1768405636563,7.29060983,146.86,146.78,3.25313535]
[1768405636758,1.16100983,146.86,146.78,3.25313535]
[1768405636959,1.20532381,146.86,146.78,3.25313535]
[1768405637262,6.1305,146.84,146.75,83.71313535]
[1768405637661,6.1305,146.84,146.76,3.25313535]
[1768405638462,1.16100983,146.86,146.76,3.25313535]
[1768405638664,0.04540435,146.81,146.76,3.25313535]
[1768405639356,6.1304,146.84,146.76,3.25313535]
[1768405639961,1.16128151,146.83,146.72,3.25313535]
[1768405640162,1.16128151,146.83,146.73,83.71313535]
[1768405640664,6.131,146.83,146.77,0.04389146]
[1768405641161,1.16866078,146.83,146.77,0.04389146]
[1768405641552,6.1312,146.82,146.77,0.04389146]
[1768405642355,1.16866078,146.84,146.77,0.04389146]
[1768405642965,1.16866078,146.84,146.74,83.44253992]
[1768405643170,1.16866078,146.84,146.74,2.98253992]
[1768405643669,6.1321,146.8,146.74,2.98253992]
[1768405644267,1.16866078,146.87,146.75,2.98253992]
[1768405644971,6.1296,146.86,146.8,0.04574949]
[1768405645464,1.16866078,146.87,146.8,0.04574949]
[1768405646367,6.1296,146.86,146.8,0.04574949]
[1768405647972,1.16866078,146.87,146.8,0.04574949]
[1768405649869,1.16866078,146.87,146.8,3.02828941]
[1768405650074,1.16866078,146.93,146.8,3.02828941]
[1768405650667,7.29616078,146.91,146.8,6.1317]
[1768405650867,7.29616078,146.91,146.81,2.98253992]
[1768405651269,7.29656078,146.9,146.81,2.98253992]
[1768405651469,1.16866078,146.9,146.85,0.04605144]
[1768405651977,6.1273,146.92,146.85,0.04605144]
[1768405652478,6.1273,146.92,146.83,2.98253992]
[1768405652679,1.16866078,146.93,146.83,9.11313992]
[1768405652882,1.16866078,146.93,146.87,0.04423472]
[1768405653173,7.29526078,146.93,146.87,0.04423472]
[1768405654174,1.16866078,146.93,146.87,0.04423472]
[1768405655086,7.29546078,146.93,146.87,0.04423472]
[1768405655584,1.16866078,146.92,146.87,0.04423472]
[1768405656181,1.16866078,146.92,146.83,2.98253992]
[1768405657280,1.16866078,146.9,146.8,9.11423992]
[1768405658078,1.16866078,146.87,146.78,6.1325]
[1768405658682,0.0470617,146.84,146.81,0.04740698]
[1768405658883,1.21572248,146.84,146.76,6.1335]
[1768405659393,1.16866078,146.84,146.76,6.1335]
[1768405660186,0.0494556,146.81,146.76,6.1335]
[1768405661088,0.0494556,146.81,146.74,2.98253992]
[1768405662384,0.0494556,146.81,146.75,2.98253992]
[1768405663392,0.0494556,146.81,146.75,9.11643992]
[1768405663591,0.0494556,146.81,146.76,2.98253992]
[1768405663891,6.1304,146.84,146.77,3.02727556]
[1768405664883,6.1309,146.83,146.77,3.02727556]
[1768405665285,6.1309,146.83,146.77,2.98253992]
[1768405665484,6.1314,146.82,146.74,83.44253992]
[1768405665684,6.42366704,146.86,146.79,0.04712518]
[1768405665888,1.1212538,146.86,146.79,0.04712518]
[1768405666185,1.1212538,146.82,146.72,2.98253992]
[1768405666778,6.1325,146.79,146.72,2.98253992]
[1768405666984,1.1212538,146.8,146.72,2.98253992]
[1768405667679,0.04407711,146.77,146.72,2.98253992]
[1768405668479,5.30241324,146.83,146.72,2.98253992]
[1768405668480,1.1212538,146.83,146.72,2.98253992]
[1768405668687,6.42366704,146.86,146.75,2.98253992]
[1768405668886,1.1212538,146.85,146.75,2.98253992]